[Event "Titled Tuesday Blitz January 03 Early 2023"]
[White "Arabidze, Meri"]
[Black "Mica, Marek"]
[WhiteFideId "13604040"]
[BlackFideId "382884"]
[WhiteElo "2441"]
[BlackElo "2256"]
[Result "0-1"]
[Round "08"]
[TimeControl "180+2"]
[Date "2023.01.03"]
[WhiteClock "0:00:03"]
[BlackClock "0:00:02"]

1. b3 {[%clk 0:02:59]}  d5 {[%clk 0:02:59]} 2. Bb2 {[%clk 0:03:00]}  c5 {[%clk 0:02:57]} 3. Nf3 {[%clk 0:03:01]}  Nc6 {[%clk 0:02:57]} 4. e3 {[%clk 0:03:01]}  a6 {[%clk 0:02:50]} 5. d4 {[%clk 0:03:01]}  cxd4 {[%clk 0:02:48]} 6. Nxd4 {[%clk 0:03:02]}  Nf6 {[%clk 0:02:46]} 7. Bd3 {[%clk 0:03:01]}  Qc7 {[%clk 0:02:43]} 8. O-O {[%clk 0:02:58]}  e5 {[%clk 0:02:41]} 9. Nxc6 {[%clk 0:02:59]}  bxc6 {[%clk 0:02:40]} 10. c4 {[%clk 0:02:59]}  Be6 {[%clk 0:02:38]} 11. Nd2 {[%clk 0:02:57]}  Bd6 {[%clk 0:02:35]} 12. e4 {[%clk 0:02:55]}  d4 {[%clk 0:02:26]} 13. Rc1 {[%clk 0:02:52]}  Nd7 {[%clk 0:02:25]} 14. Be2 {[%clk 0:02:34]}  O-O {[%clk 0:02:24]} 15. Bg4 {[%clk 0:02:30]}  Rae8 {[%clk 0:02:12]} 16. h3 {[%clk 0:02:25]}  a5 {[%clk 0:02:07]} 17. Nf3 {[%clk 0:02:24]}  Nc5 {[%clk 0:02:00]} 18. Re1 {[%clk 0:02:15]}  Qd7 {[%clk 0:01:51]} 19. Bxe6 {[%clk 0:02:07]}  Qxe6 {[%clk 0:01:52]} 20. Re2 {[%clk 0:01:53]}  f5 {[%clk 0:01:39]} 21. exf5 {[%clk 0:01:41]}  Qxf5 {[%clk 0:01:25]} 22. Nxd4 {[%clk 0:01:26]}  exd4 {[%clk 0:01:24]} 23. Qxd4 {[%clk 0:01:27]}  Be5 {[%clk 0:01:15]} 24. Rxe5 {[%clk 0:01:14]}  Qxe5 {[%clk 0:01:07]} 25. Qxe5 {[%clk 0:01:15]}  Rxe5 {[%clk 0:01:07]} 26. Bxe5 {[%clk 0:01:16]}  Nd3 {[%clk 0:01:07]} 27. Rd1 {[%clk 0:01:06]}  Nxe5 {[%clk 0:01:07]} 28. g3 {[%clk 0:00:54]}  g5 {[%clk 0:01:02]} 29. Kg2 {[%clk 0:00:54]}  a4 {[%clk 0:00:57]} 30. Rd6 {[%clk 0:00:48]}  axb3 {[%clk 0:00:47]} 31. axb3 {[%clk 0:00:49]}  Rb8 {[%clk 0:00:46]} 32. Re6 {[%clk 0:00:48]}  Nd3 {[%clk 0:00:40]} 33. Rxc6 {[%clk 0:00:48]}  Rxb3 {[%clk 0:00:40]} 34. Rd6 {[%clk 0:00:47]}  Rc3 {[%clk 0:00:39]} 35. Rd5 {[%clk 0:00:42]}  h6 {[%clk 0:00:35]} 36. Rd6 {[%clk 0:00:42]}  Kg7 {[%clk 0:00:35]} 37. Rd7+ {[%clk 0:00:42]}  Kg6 {[%clk 0:00:32]} 38. Rd6+ {[%clk 0:00:42]}  Kg7 {[%clk 0:00:32]} 39. Rd7+ {[%clk 0:00:42]}  Kf6 {[%clk 0:00:33]} 40. Rd6+ {[%clk 0:00:42]}  Kf5 {[%clk 0:00:24]} 41. c5 {[%clk 0:00:31]}  h5 {[%clk 0:00:14]} 42. c6 {[%clk 0:00:28]}  Ne5 {[%clk 0:00:14]} 43. Rh6 {[%clk 0:00:23]}  Rxc6 {[%clk 0:00:13]} 44. Rxh5 {[%clk 0:00:23]}  Kg6 {[%clk 0:00:13]} 45. Rh8 {[%clk 0:00:21]}  Rc2 {[%clk 0:00:13]} 46. Rd8 {[%clk 0:00:19]}  Kf5 {[%clk 0:00:12]} 47. Rf8+ {[%clk 0:00:18]}  Kg6 {[%clk 0:00:12]} 48. Rd8 {[%clk 0:00:17]}  Nc4 {[%clk 0:00:12]} 49. Kf3 {[%clk 0:00:14]}  Ne5+ {[%clk 0:00:10]} 50. Ke3 {[%clk 0:00:13]}  Kf5 {[%clk 0:00:08]} 51. Rf8+ {[%clk 0:00:13]}  Ke6 {[%clk 0:00:08]} 52. Re8+ {[%clk 0:00:13]}  Kf6 {[%clk 0:00:08]} 53. Rf8+ {[%clk 0:00:12]}  Nf7 {[%clk 0:00:07]} 54. Kf3 {[%clk 0:00:09]}  Rc3+ {[%clk 0:00:07]} 55. Kg2 {[%clk 0:00:08]}  Kg7 {[%clk 0:00:06]} 56. Ra8 {[%clk 0:00:09]}  Ne5 {[%clk 0:00:07]} 57. Ra7+ {[%clk 0:00:09]}  Kf6 {[%clk 0:00:07]} 58. Ra6+ {[%clk 0:00:10]}  Kf5 {[%clk 0:00:07]} 59. g4+ {[%clk 0:00:10]}  Kf4 {[%clk 0:00:07]} 60. Rf6+ {[%clk 0:00:11]}  Ke4 {[%clk 0:00:07]} 61. Rf5 {[%clk 0:00:11]}  Nf3 {[%clk 0:00:06]} 62. Rf8 {[%clk 0:00:07]}  Nh4+ {[%clk 0:00:06]} 63. Kh2 {[%clk 0:00:07]}  Rf3 {[%clk 0:00:06]} 64. Re8+ {[%clk 0:00:07]}  Kd3 {[%clk 0:00:07]} 65. Rd8+ {[%clk 0:00:07]}  Ke2 {[%clk 0:00:06]} 66. Kg1 {[%clk 0:00:06]}  Rd3 {[%clk 0:00:05]} 67. Re8+ {[%clk 0:00:05]}  Kd2 {[%clk 0:00:05]} 68. Kh2 {[%clk 0:00:03]}  Rf3 {[%clk 0:00:04]} 69. Kg1 {[%clk 0:00:03]}  Rxh3 {[%clk 0:00:04]} 70. Rd8+ {[%clk 0:00:02]}  Rd3 {[%clk 0:00:04]} 71. Rf8 {[%clk 0:00:01]}  Rf3 {[%clk 0:00:02]} 72. Rd8+ {[%clk 0:00:01]}  Ke2 {[%clk 0:00:01]} 73. Re8+ {[%clk 0:00:02]}  Kd3 {[%clk 0:00:02]} 74. Rd8+ {[%clk 0:00:02]}  Ke4 {[%clk 0:00:02]} 75. Re8+ {[%clk 0:00:03]}  Kf4 {[%clk 0:00:02]} 0-1


[Site "https://www.chess.com"]

[Event "Titled Tuesday Blitz January 03 Early 2023"]
[White "Gascon Del Nogal, Jose Rafael"]
[Black "Degenbaev, Aziz"]
[WhiteFideId "3902463"]
[BlackFideId "13802640"]
[WhiteElo "2459"]
[BlackElo "2203"]
[Result "1-0"]
[Round "08"]
[TimeControl "180+2"]
[Date "2023.01.03"]
[WhiteClock "0:00:46"]
[BlackClock "0:01:04"]

1. e4 {[%clk 0:03:00]}  c5 {[%clk 0:02:58]} 2. Nf3 {[%clk 0:03:00]}  d6 {[%clk 0:02:58]} 3. d4 {[%clk 0:03:00]}  cxd4 {[%clk 0:02:59]} 4. Nxd4 {[%clk 0:03:01]}  Nf6 {[%clk 0:03:00]} 5. Nc3 {[%clk 0:03:01]}  a6 {[%clk 0:03:00]} 6. Nb3 {[%clk 0:02:59]}  Nc6 {[%clk 0:02:55]} 7. Be3 {[%clk 0:02:58]}  Ng4 {[%clk 0:02:53]} 8. Bg5 {[%clk 0:02:51]}  h6 {[%clk 0:02:51]} 9. Bh4 {[%clk 0:02:51]}  g5 {[%clk 0:02:52]} 10. Bg3 {[%clk 0:02:51]}  Bg7 {[%clk 0:02:52]} 11. h4 {[%clk 0:02:46]}  Be6 {[%clk 0:02:40]} 12. hxg5 {[%clk 0:02:40]}  hxg5 {[%clk 0:02:40]} 13. Rxh8+ {[%clk 0:02:40]}  Bxh8 {[%clk 0:02:41]} 14. Qd2 {[%clk 0:02:35]}  Bf6 {[%clk 0:02:34]} 15. O-O-O {[%clk 0:02:28]}  Qc7 {[%clk 0:02:22]} 16. Be2 {[%clk 0:02:26]}  Nge5 {[%clk 0:02:06]} 17. Nd5 {[%clk 0:02:21]}  Bxd5 {[%clk 0:02:06]} 18. exd5 {[%clk 0:02:22]}  Nb8 {[%clk 0:01:46]} 19. Bxe5 {[%clk 0:00:57]}  dxe5 {[%clk 0:01:46]} 20. Bg4 {[%clk 0:00:55]}  Nd7 {[%clk 0:01:42]} 21. d6 {[%clk 0:00:55]}  Qc6 {[%clk 0:01:04]} 22. dxe7 {[%clk 0:00:49]}  Nc5 {[%clk 0:01:04]} 23. Nxc5 {[%clk 0:00:46]} 1-0


[Site "https://www.chess.com"]

[Event "Titled Tuesday Blitz January 03 Early 2023"]
[White "Padmini, Rout"]
[Black "Manukian, Artak"]
[WhiteFideId "5029295"]
[BlackFideId "13301373"]
[WhiteElo "2375"]
[BlackElo "2196"]
[Result "0-1"]
[Round "08"]
[TimeControl "180+2"]
[Date "2023.01.03"]
[WhiteClock "0:00:35"]
[BlackClock "0:00:42"]

1. Nf3 {[%clk 0:03:00]}  d5 {[%clk 0:02:58]} 2. g3 {[%clk 0:03:01]}  Nf6 {[%clk 0:02:58]} 3. Bg2 {[%clk 0:03:01]}  Bg4 {[%clk 0:02:57]} 4. O-O {[%clk 0:03:01]}  Nc6 {[%clk 0:02:56]} 5. c4 {[%clk 0:02:55]}  d4 {[%clk 0:02:53]} 6. b4 {[%clk 0:02:48]}  Bxf3 {[%clk 0:01:54]} 7. Bxf3 {[%clk 0:02:45]}  Rb8 {[%clk 0:01:54]} 8. d3 {[%clk 0:02:39]}  Nxb4 {[%clk 0:01:52]} 9. Qa4+ {[%clk 0:02:37]}  Nc6 {[%clk 0:01:52]} 10. Bxc6+ {[%clk 0:02:29]}  bxc6 {[%clk 0:01:52]} 11. Qxc6+ {[%clk 0:02:29]}  Qd7 {[%clk 0:01:50]} 12. Qxd7+ {[%clk 0:02:20]}  Kxd7 {[%clk 0:01:46]} 13. Nd2 {[%clk 0:02:19]}  e5 {[%clk 0:01:41]} 14. Nb3 {[%clk 0:02:17]}  Bb4 {[%clk 0:01:37]} 15. Rb1 {[%clk 0:02:13]}  a5 {[%clk 0:01:30]} 16. f4 {[%clk 0:02:11]}  e4 {[%clk 0:01:26]} 17. Bb2 {[%clk 0:01:59]}  exd3 {[%clk 0:01:21]} 18. exd3 {[%clk 0:01:58]}  c5 {[%clk 0:01:21]} 19. a3 {[%clk 0:01:55]}  Bc3 {[%clk 0:01:18]} 20. Nxc5+ {[%clk 0:01:45]}  Kc6 {[%clk 0:01:15]} 21. Na4 {[%clk 0:01:35]}  Bxb2 {[%clk 0:01:08]} 22. Rxb2 {[%clk 0:01:27]}  Rxb2 {[%clk 0:01:07]} 23. Nxb2 {[%clk 0:01:28]}  Rb8 {[%clk 0:01:07]} 24. Nd1 {[%clk 0:01:18]}  Rb3 {[%clk 0:01:07]} 25. Nf2 {[%clk 0:01:18]}  Rxa3 {[%clk 0:01:07]} 26. Rb1 {[%clk 0:01:17]}  a4 {[%clk 0:01:04]} 27. Kf1 {[%clk 0:00:51]}  Rb3 {[%clk 0:01:00]} 28. Ra1 {[%clk 0:00:48]}  a3 {[%clk 0:01:00]} 29. Ra2 {[%clk 0:00:41]}  Kc5 {[%clk 0:00:54]} 30. h3 {[%clk 0:00:39]}  Kb4 {[%clk 0:00:52]} 31. Re2 {[%clk 0:00:39]}  Rb2 {[%clk 0:00:43]} 32. Re7 {[%clk 0:00:38]}  a2 {[%clk 0:00:42]} 33. Ra7 {[%clk 0:00:35]}  Rb1+ {[%clk 0:00:42]} 0-1


[Site "https://www.chess.com"]

[Event "Titled Tuesday Blitz January 03 Early 2023"]
[White "Nathan, Nitish"]
[Black "Iljin, Timofey"]
[WhiteFideId "30927870"]
[BlackFideId "14110180"]
[WhiteElo "2071"]
[BlackElo "2329"]
[Result "1-0"]
[Round "08"]
[TimeControl "180+2"]
[Date "2023.01.03"]
[WhiteClock "0:01:36"]
[BlackClock "0:00:33"]

1. d4 {[%clk 0:03:00]}  f5 {[%clk 0:02:59]} 2. Bf4 {[%clk 0:03:00]}  Nf6 {[%clk 0:03:00]} 3. e3 {[%clk 0:03:00]}  g6 {[%clk 0:03:00]} 4. h3 {[%clk 0:03:01]}  Bg7 {[%clk 0:03:01]} 5. Nf3 {[%clk 0:03:01]}  O-O {[%clk 0:03:02]} 6. Bc4+ {[%clk 0:03:02]}  Kh8 {[%clk 0:03:02]} 7. O-O {[%clk 0:03:01]}  Qe8 {[%clk 0:03:02]} 8. Bb3 {[%clk 0:03:00]}  d6 {[%clk 0:03:03]} 9. c4 {[%clk 0:03:01]}  Nc6 {[%clk 0:03:02]} 10. Nc3 {[%clk 0:03:01]}  e5 {[%clk 0:03:02]} 11. Bh2 {[%clk 0:03:01]}  e4 {[%clk 0:03:01]} 12. Nd2 {[%clk 0:03:01]}  h6 {[%clk 0:03:01]} 13. a3 {[%clk 0:03:00]}  g5 {[%clk 0:03:00]} 14. Bc2 {[%clk 0:03:00]}  Bd7 {[%clk 0:02:52]} 15. b4 {[%clk 0:03:00]}  a6 {[%clk 0:02:51]} 16. c5 {[%clk 0:02:59]}  Qe7 {[%clk 0:02:44]} 17. Nc4 {[%clk 0:02:57]}  d5 {[%clk 0:02:41]} 18. Ne5 {[%clk 0:02:56]}  Nxe5 {[%clk 0:02:41]} 19. dxe5 {[%clk 0:02:56]}  Nh7 {[%clk 0:02:06]} 20. Nxd5 {[%clk 0:02:56]}  Qd8 {[%clk 0:02:06]} 21. e6 {[%clk 0:02:47]}  Bxe6 {[%clk 0:02:01]} 22. Nxc7 {[%clk 0:02:46]}  Qf6 {[%clk 0:01:32]} 23. Nxa8 {[%clk 0:02:13]}  Rxa8 {[%clk 0:01:28]} 24. Rc1 {[%clk 0:02:10]}  Bc4 {[%clk 0:01:21]} 25. Re1 {[%clk 0:02:07]}  Rd8 {[%clk 0:01:21]} 26. Bd6 {[%clk 0:02:07]}  f4 {[%clk 0:01:09]} 27. Bxe4 {[%clk 0:02:05]}  fxe3 {[%clk 0:00:54]} 28. Rxe3 {[%clk 0:02:01]}  b5 {[%clk 0:00:36]} 29. Bxh7 {[%clk 0:01:53]}  Kxh7 {[%clk 0:00:35]} 30. Qc2+ {[%clk 0:01:53]}  Kh8 {[%clk 0:00:35]} 31. Be5 {[%clk 0:01:52]}  Qf7 {[%clk 0:00:30]} 32. Bxg7+ {[%clk 0:01:51]}  Qxg7 {[%clk 0:00:31]} 33. Qc3 {[%clk 0:01:50]}  Qxc3 {[%clk 0:00:31]} 34. Rcxc3 {[%clk 0:01:49]}  Kg7 {[%clk 0:00:30]} 35. Re7+ {[%clk 0:01:45]}  Kf6 {[%clk 0:00:30]} 36. Ra7 {[%clk 0:01:45]}  Ke5 {[%clk 0:00:26]} 37. Rxa6 {[%clk 0:01:46]}  Kd5 {[%clk 0:00:27]} 38. Rd6+ {[%clk 0:01:44]}  Rxd6 {[%clk 0:00:26]} 39. cxd6 {[%clk 0:01:45]}  Kxd6 {[%clk 0:00:27]} 40. a4 {[%clk 0:01:43]}  Kc6 {[%clk 0:00:18]} 41. axb5+ {[%clk 0:01:38]}  Kxb5 {[%clk 0:00:18]} 42. Rf3 {[%clk 0:01:31]}  Kxb4 {[%clk 0:00:17]} 43. Rf6 {[%clk 0:01:31]}  h5 {[%clk 0:00:18]} 44. Rf5 {[%clk 0:01:31]}  g4 {[%clk 0:00:18]} 45. Rxh5 {[%clk 0:01:31]}  gxh3 {[%clk 0:00:19]} 46. Rxh3 {[%clk 0:01:31]}  Kc5 {[%clk 0:00:19]} 47. Rc3 {[%clk 0:01:30]}  Kd5 {[%clk 0:00:20]} 48. Rxc4 {[%clk 0:01:31]}  Kxc4 {[%clk 0:00:21]} 49. g4 {[%clk 0:01:31]}  Kd5 {[%clk 0:00:22]} 50. Kg2 {[%clk 0:01:31]}  Ke5 {[%clk 0:00:23]} 51. Kg3 {[%clk 0:01:31]}  Kf6 {[%clk 0:00:23]} 52. f4 {[%clk 0:01:32]}  Kg6 {[%clk 0:00:24]} 53. Kh4 {[%clk 0:01:33]}  Kf6 {[%clk 0:00:25]} 54. Kh5 {[%clk 0:01:33]}  Kg7 {[%clk 0:00:25]} 55. Kg5 {[%clk 0:01:34]}  Kf7 {[%clk 0:00:25]} 56. Kh6 {[%clk 0:01:34]}  Kf6 {[%clk 0:00:25]} 57. g5+ {[%clk 0:01:33]}  Kf7 {[%clk 0:00:26]} 58. Kh7 {[%clk 0:01:34]}  Kf8 {[%clk 0:00:26]} 59. g6 {[%clk 0:01:35]}  Ke7 {[%clk 0:00:27]} 60. g7 {[%clk 0:01:35]}  Kf6 {[%clk 0:00:28]} 61. g8=Q {[%clk 0:01:36]}  Kf5 {[%clk 0:00:29]} 62. Qg5+ {[%clk 0:01:35]}  Ke4 {[%clk 0:00:29]} 63. Qe5+ {[%clk 0:01:35]}  Kd3 {[%clk 0:00:30]} 64. f5 {[%clk 0:01:35]}  Kc4 {[%clk 0:00:30]} 65. f6 {[%clk 0:01:35]}  Kd3 {[%clk 0:00:31]} 66. f7 {[%clk 0:01:35]}  Kc4 {[%clk 0:00:32]} 67. f8=R {[%clk 0:01:35]}  Kb3 {[%clk 0:00:32]} 68. Rc8 {[%clk 0:01:35]}  Kb4 {[%clk 0:00:32]} 69. Qc7 {[%clk 0:01:35]}  Kb3 {[%clk 0:00:33]} 70. Rb8+ {[%clk 0:01:35]}  Ka2 {[%clk 0:00:33]} 71. Qa7# {[%clk 0:01:36]} 1-0


[Site "https://www.chess.com"]

[Event "Titled Tuesday Blitz January 03 Early 2023"]
[White "Demchenko, Anton"]
[Black "Mikhalsky, Vladimir"]
[WhiteFideId "4160258"]
[BlackFideId "14144352"]
[WhiteElo "2623"]
[BlackElo "2219"]
[Result "1-0"]
[Round "08"]
[TimeControl "180+2"]
[Date "2023.01.03"]
[WhiteClock "0:00:52"]
[BlackClock "0:00:06"]

1. Nf3 {[%clk 0:03:00]}  c5 {[%clk 0:02:59]} 2. g3 {[%clk 0:02:57]}  Nc6 {[%clk 0:02:57]} 3. Bg2 {[%clk 0:02:57]}  e5 {[%clk 0:02:57]} 4. O-O {[%clk 0:02:57]}  d5 {[%clk 0:02:56]} 5. d3 {[%clk 0:02:56]}  f6 {[%clk 0:02:56]} 6. e4 {[%clk 0:02:53]}  d4 {[%clk 0:02:55]} 7. c3 {[%clk 0:02:48]}  Be6 {[%clk 0:02:55]} 8. cxd4 {[%clk 0:02:48]}  cxd4 {[%clk 0:02:55]} 9. a3 {[%clk 0:02:45]}  Qd7 {[%clk 0:02:54]} 10. b4 {[%clk 0:02:42]}  Bd6 {[%clk 0:02:53]} 11. Nbd2 {[%clk 0:02:42]}  Nge7 {[%clk 0:02:53]} 12. Nc4 {[%clk 0:02:32]}  Bc7 {[%clk 0:02:52]} 13. Ne1 {[%clk 0:02:23]}  O-O {[%clk 0:02:32]} 14. Bd2 {[%clk 0:02:22]}  b5 {[%clk 0:02:29]} 15. Na5 {[%clk 0:02:08]}  Nxa5 {[%clk 0:02:28]} 16. bxa5 {[%clk 0:02:09]}  Nc6 {[%clk 0:02:28]} 17. a6 {[%clk 0:02:09]}  Qc8 {[%clk 0:02:22]} 18. f4 {[%clk 0:01:52]}  Qxa6 {[%clk 0:02:21]} 19. f5 {[%clk 0:01:53]}  Bf7 {[%clk 0:02:15]} 20. g4 {[%clk 0:01:53]}  Ba5 {[%clk 0:02:06]} 21. g5 {[%clk 0:01:54]}  Bxd2 {[%clk 0:02:01]} 22. Qxd2 {[%clk 0:01:54]}  Qa5 {[%clk 0:01:57]} 23. Qf2 {[%clk 0:01:52]}  fxg5 {[%clk 0:01:48]} 24. Qg3 {[%clk 0:01:52]}  Qd8 {[%clk 0:01:41]} 25. Nf3 {[%clk 0:01:52]}  Qf6 {[%clk 0:01:04]} 26. Nxg5 {[%clk 0:01:52]}  Rac8 {[%clk 0:00:52]} 27. Bh3 {[%clk 0:01:44]}  Nd8 {[%clk 0:00:43]} 28. Ne6 {[%clk 0:01:11]}  Re8 {[%clk 0:00:43]} 29. Nxg7 {[%clk 0:01:10]}  Qxg7 {[%clk 0:00:19]} 30. Qxg7+ {[%clk 0:01:11]}  Kxg7 {[%clk 0:00:20]} 31. f6+ {[%clk 0:01:12]}  Kh6 {[%clk 0:00:20]} 32. Bxc8 {[%clk 0:01:13]}  Ne6 {[%clk 0:00:20]} 33. Bxe6 {[%clk 0:01:09]}  Rxe6 {[%clk 0:00:18]} 34. Ra2 {[%clk 0:01:10]}  Rc6 {[%clk 0:00:14]} 35. Rg2 {[%clk 0:01:08]}  a5 {[%clk 0:00:13]} 36. Rf3 {[%clk 0:01:08]}  Rc1+ {[%clk 0:00:11]} 37. Kf2 {[%clk 0:01:08]}  Rc2+ {[%clk 0:00:11]} 38. Kg3 {[%clk 0:01:08]}  Rxg2+ {[%clk 0:00:11]} 39. Kxg2 {[%clk 0:01:09]}  b4 {[%clk 0:00:11]} 40. axb4 {[%clk 0:01:07]}  axb4 {[%clk 0:00:12]} 41. Rf5 {[%clk 0:01:02]}  Kg6 {[%clk 0:00:11]} 42. Rxe5 {[%clk 0:01:02]}  Kxf6 {[%clk 0:00:11]} 43. Rf5+ {[%clk 0:00:58]}  Ke7 {[%clk 0:00:11]} 44. Rb5 {[%clk 0:00:58]}  b3 {[%clk 0:00:11]} 45. Rb7+ {[%clk 0:00:57]}  Kf6 {[%clk 0:00:11]} 46. Kf3 {[%clk 0:00:55]}  Bh5+ {[%clk 0:00:09]} 47. Kf4 {[%clk 0:00:54]}  Bf7 {[%clk 0:00:09]} 48. Rb6+ {[%clk 0:00:54]}  Ke7 {[%clk 0:00:09]} 49. Ke5 {[%clk 0:00:54]}  Bg8 {[%clk 0:00:08]} 50. Rb7+ {[%clk 0:00:54]}  Kf8 {[%clk 0:00:09]} 51. Kxd4 {[%clk 0:00:55]}  Be6 {[%clk 0:00:08]} 52. Kc3 {[%clk 0:00:53]}  h5 {[%clk 0:00:07]} 53. Rh7 {[%clk 0:00:52]}  Kg8 {[%clk 0:00:06]} 54. Rxh5 {[%clk 0:00:52]} 1-0


[Site "https://www.chess.com"]

[Event "Titled Tuesday Blitz January 03 Early 2023"]
[White "Liyanage, Ranindu Dilshan"]
[Black "Le Ruyet, Leopold"]
[WhiteFideId "9915834"]
[BlackFideId "645923"]
[WhiteElo "2342"]
[BlackElo "2245"]
[Result "1-0"]
[Round "08"]
[TimeControl "180+2"]
[Date "2023.01.03"]
[WhiteClock "0:01:28"]
[BlackClock "0:00:08"]

1. d4 {[%clk 0:02:59]}  Nf6 {[%clk 0:02:59]} 2. Nc3 {[%clk 0:02:59]}  d6 {[%clk 0:02:56]} 3. e4 {[%clk 0:02:59]}  e5 {[%clk 0:02:56]} 4. Nf3 {[%clk 0:02:58]}  Nbd7 {[%clk 0:02:55]} 5. Bc4 {[%clk 0:02:58]}  Be7 {[%clk 0:02:56]} 6. a4 {[%clk 0:02:58]}  a5 {[%clk 0:02:52]} 7. O-O {[%clk 0:02:58]}  O-O {[%clk 0:02:52]} 8. h3 {[%clk 0:02:58]}  c6 {[%clk 0:02:52]} 9. Be3 {[%clk 0:02:57]}  h6 {[%clk 0:02:49]} 10. Qd2 {[%clk 0:02:55]}  Re8 {[%clk 0:02:49]} 11. Rfe1 {[%clk 0:02:55]}  exd4 {[%clk 0:02:46]} 12. Nxd4 {[%clk 0:02:54]}  Nf8 {[%clk 0:02:46]} 13. Rad1 {[%clk 0:02:53]}  Qc7 {[%clk 0:02:35]} 14. Ba2 {[%clk 0:02:51]}  Ne6 {[%clk 0:02:27]} 15. Nf5 {[%clk 0:02:49]}  Rd8 {[%clk 0:01:48]} 16. Bxh6 {[%clk 0:02:46]}  g6 {[%clk 0:01:17]} 17. Nd4 {[%clk 0:02:36]}  Qb6 {[%clk 0:01:07]} 18. Nxe6 {[%clk 0:02:17]}  Bxe6 {[%clk 0:01:05]} 19. Bxe6 {[%clk 0:02:17]}  fxe6 {[%clk 0:01:06]} 20. Qg5 {[%clk 0:02:18]}  Kf7 {[%clk 0:00:54]} 21. e5 {[%clk 0:02:04]}  dxe5 {[%clk 0:00:31]} 22. Qxe5 {[%clk 0:02:00]}  c5 {[%clk 0:00:31]} 23. Ne4 {[%clk 0:01:46]}  Rd5 {[%clk 0:00:19]} 24. Ng5+ {[%clk 0:01:42]}  Ke8 {[%clk 0:00:08]} 25. Rxd5 {[%clk 0:01:29]}  Nxd5 {[%clk 0:00:08]} 26. Nxe6 {[%clk 0:01:28]} 1-0


[Site "https://www.chess.com"]

[Event "Titled Tuesday Blitz January 03 Early 2023"]
[White "Avazkhonov, Alikhon"]
[Black "Ilkhomi, Jaloliddin"]
[WhiteFideId "14208504"]
[BlackFideId "14700948"]
[WhiteElo "1538"]
[BlackElo "1997"]
[Result "0-1"]
[Round "08"]
[TimeControl "180+2"]
[Date "2023.01.03"]
[WhiteClock "0:00:01"]
[BlackClock "0:00:57"]

1. d4 {[%clk 0:03:00]}  Nf6 {[%clk 0:02:56]} 2. c4 {[%clk 0:03:00]}  e6 {[%clk 0:02:55]} 3. Nc3 {[%clk 0:03:01]}  Bb4 {[%clk 0:02:53]} 4. e3 {[%clk 0:03:01]}  O-O {[%clk 0:02:50]} 5. Bd2 {[%clk 0:03:01]}  c5 {[%clk 0:02:50]} 6. a3 {[%clk 0:03:01]}  Bxc3 {[%clk 0:02:49]} 7. Bxc3 {[%clk 0:03:02]}  b6 {[%clk 0:02:50]} 8. Qf3 {[%clk 0:01:55]}  d5 {[%clk 0:02:34]} 9. dxc5 {[%clk 0:01:54]}  Ne4 {[%clk 0:02:32]} 10. Rc1 {[%clk 0:01:20]}  bxc5 {[%clk 0:02:21]} 11. Bd3 {[%clk 0:01:20]}  Nxc3 {[%clk 0:02:04]} 12. Rxc3 {[%clk 0:01:20]}  Bb7 {[%clk 0:02:04]} 13. cxd5 {[%clk 0:01:16]}  Bxd5 {[%clk 0:01:49]} 14. Qh3 {[%clk 0:00:35]}  f5 {[%clk 0:01:43]} 15. Ne2 {[%clk 0:00:33]}  Nd7 {[%clk 0:01:41]} 16. O-O {[%clk 0:00:33]}  Ne5 {[%clk 0:01:40]} 17. Nf4 {[%clk 0:00:30]}  Rc8 {[%clk 0:01:35]} 18. Ba6 {[%clk 0:00:25]}  Rc6 {[%clk 0:01:32]} 19. Bb5 {[%clk 0:00:23]}  Rb6 {[%clk 0:01:08]} 20. Rxc5 {[%clk 0:00:19]}  Qd6 {[%clk 0:00:59]} 21. b4 {[%clk 0:00:19]}  Rxb5 {[%clk 0:00:56]} 22. Rxb5 {[%clk 0:00:17]}  Bc4 {[%clk 0:00:57]} 23. Rxe5 {[%clk 0:00:05]}  Bxf1 {[%clk 0:00:57]} 24. Rxe6 {[%clk 0:00:01]}  Qd1 {[%clk 0:00:57]} 25. Qf3 {[%clk 0:00:01]} 0-1


[Site "https://www.chess.com"]

[Event "Titled Tuesday Blitz January 03 Early 2023"]
[White "Karttunen, Mika"]
[Black "Lorenzo De La Riva, Lazaro"]
[WhiteFideId "502081"]
[BlackFideId "2268809"]
[WhiteElo "2490"]
[BlackElo "2404"]
[Result "1-0"]
[Round "08"]
[TimeControl "180+2"]
[Date "2023.01.03"]
[WhiteClock "0:00:14"]
[BlackClock "0:00:20"]

1. e4 {[%clk 0:01:57]}  Nf6 {[%clk 0:03:00]} 2. e5 {[%clk 0:01:57]}  Nd5 {[%clk 0:03:00]} 3. d4 {[%clk 0:01:57]}  d6 {[%clk 0:03:00]} 4. c4 {[%clk 0:01:57]}  Nb6 {[%clk 0:03:00]} 5. f4 {[%clk 0:01:58]}  Bf5 {[%clk 0:02:55]} 6. Nc3 {[%clk 0:01:56]}  e6 {[%clk 0:02:54]} 7. Be3 {[%clk 0:01:55]}  Nc6 {[%clk 0:02:55]} 8. Nf3 {[%clk 0:01:54]}  Be7 {[%clk 0:02:52]} 9. Be2 {[%clk 0:01:54]}  dxe5 {[%clk 0:02:46]} 10. fxe5 {[%clk 0:01:54]}  O-O {[%clk 0:02:46]} 11. O-O {[%clk 0:01:52]}  f6 {[%clk 0:02:46]} 12. exf6 {[%clk 0:01:51]}  Bxf6 {[%clk 0:02:47]} 13. Qd2 {[%clk 0:01:48]}  Qe8 {[%clk 0:02:46]} 14. Rad1 {[%clk 0:01:47]}  Rd8 {[%clk 0:02:45]} 15. Qc1 {[%clk 0:01:42]}  e5 {[%clk 0:02:41]} 16. d5 {[%clk 0:01:25]}  Nd4 {[%clk 0:02:39]} 17. Nxd4 {[%clk 0:01:14]}  exd4 {[%clk 0:02:40]} 18. Bxd4 {[%clk 0:01:14]}  Bxd4+ {[%clk 0:02:39]} 19. Rxd4 {[%clk 0:01:14]}  Qg6 {[%clk 0:02:39]} 20. Rdf4 {[%clk 0:01:03]}  Nd7 {[%clk 0:02:39]} 21. Qe3 {[%clk 0:00:57]}  Rde8 {[%clk 0:02:31]} 22. Qxa7 {[%clk 0:00:48]}  Bd3 {[%clk 0:02:27]} 23. Rxf8+ {[%clk 0:00:45]}  Nxf8 {[%clk 0:02:28]} 24. Bxd3 {[%clk 0:00:25]}  Qxd3 {[%clk 0:02:28]} 25. Qf2 {[%clk 0:00:25]}  Qg6 {[%clk 0:02:23]} 26. Nb5 {[%clk 0:00:25]}  c6 {[%clk 0:02:05]} 27. Nd4 {[%clk 0:00:24]}  h6 {[%clk 0:01:53]} 28. dxc6 {[%clk 0:00:23]}  bxc6 {[%clk 0:01:54]} 29. Nf5 {[%clk 0:00:21]}  Ne6 {[%clk 0:01:50]} 30. Nd6 {[%clk 0:00:18]}  Ra8 {[%clk 0:01:44]} 31. a3 {[%clk 0:00:18]}  Rb8 {[%clk 0:01:39]} 32. b4 {[%clk 0:00:17]}  Ra8 {[%clk 0:01:40]} 33. Qe3 {[%clk 0:00:15]}  Rb8 {[%clk 0:01:19]} 34. c5 {[%clk 0:00:15]}  Ng5 {[%clk 0:01:18]} 35. h4 {[%clk 0:00:15]}  Ne6 {[%clk 0:01:10]} 36. Re1 {[%clk 0:00:15]}  Nc7 {[%clk 0:01:06]} 37. Qe4 {[%clk 0:00:16]}  Qf6 {[%clk 0:01:03]} 38. Qxc6 {[%clk 0:00:15]}  Qxh4 {[%clk 0:00:55]} 39. Qe4 {[%clk 0:00:13]}  Qf6 {[%clk 0:00:43]} 40. Rf1 {[%clk 0:00:12]}  Qc3 {[%clk 0:00:40]} 41. Qc4+ {[%clk 0:00:12]}  Qxc4 {[%clk 0:00:40]} 42. Nxc4 {[%clk 0:00:13]}  Nb5 {[%clk 0:00:39]} 43. Rd1 {[%clk 0:00:13]}  Re8 {[%clk 0:00:36]} 44. a4 {[%clk 0:00:13]}  Nc3 {[%clk 0:00:35]} 45. Ra1 {[%clk 0:00:13]}  Re4 {[%clk 0:00:35]} 46. Nd6 {[%clk 0:00:13]}  Rxb4 {[%clk 0:00:35]} 47. c6 {[%clk 0:00:14]}  Nd5 {[%clk 0:00:35]} 48. a5 {[%clk 0:00:14]}  Rb8 {[%clk 0:00:19]} 49. a6 {[%clk 0:00:14]}  Ra8 {[%clk 0:00:20]} 50. a7 {[%clk 0:00:14]}  Kf8 {[%clk 0:00:19]} 51. Nb5 {[%clk 0:00:14]}  Ke7 {[%clk 0:00:20]} 52. c7 {[%clk 0:00:14]}  Kd7 {[%clk 0:00:20]} 53. Rc1 {[%clk 0:00:14]}  Nb6 {[%clk 0:00:18]} 54. Rc5 {[%clk 0:00:14]}  Nc8 {[%clk 0:00:18]} 55. Kf2 {[%clk 0:00:14]}  Nxa7 {[%clk 0:00:18]} 56. Nxa7 {[%clk 0:00:14]}  Rxa7 {[%clk 0:00:18]} 57. c8=Q+ {[%clk 0:00:14]}  Kd6 {[%clk 0:00:19]} 58. Qb8+ {[%clk 0:00:14]}  Ke7 {[%clk 0:00:20]} 59. Qxa7+ {[%clk 0:00:14]} 1-0


[Site "https://www.chess.com"]